fUST/lending_fUST_20241125
["ID","MTS","AMOUNT","RATE_DAILY","PERIOD"]
[343295798,1732549841435,-2839.61,0.00027804,2]
[343295800,1732549841444,-525.06,0.00027804,2]
[343295802,1732549841457,-500.0,0.00027804,2]
[343295804,1732549841467,-500.0,0.00027804,2]
[343295805,1732549841476,-500.0,0.00027804,2]
[343295806,1732549841485,-500.0,0.00027804,2]
[343295807,1732549841494,-500.0,0.00027804,2]
[343295808,1732549841504,-500.0,0.00027804,2]
[343295809,1732549841513,-500.0,0.00027804,2]
[343295810,1732549841522,-894.34,0.00027804,2]
[343295811,1732549841531,-500.0,0.00027804,2]
[343295812,1732549841540,-500.0,0.00027804,2]
[343295813,1732549841550,-500.0,0.00027804,2]
[343295814,1732549841559,-500.0,0.00027804,2]
[343295815,1732549841568,-500.0,0.00027804,2]
[343295816,1732549841577,-500.0,0.00027804,2]
[343295817,1732549841587,-500.0,0.00027804,2]
[343295818,1732549841596,-200.0,0.00027804,2]
[343295819,1732549841605,-500.0,0.00027804,2]
[343295821,1732549841616,-500.0,0.00027804,2]
[343295823,1732549841625,-500.0,0.00027804,2]
[343295825,1732549841634,-500.0,0.00027804,2]
[343295827,1732549841643,-500.0,0.00027804,2]
[343295829,1732549841652,-500.0,0.00027804,2]
[343295831,1732549841661,-500.0,0.00027804,2]
[343295833,1732549841670,-500.0,0.00027804,2]
[343295835,1732549841680,-500.0,0.00027804,2]
[343295837,1732549841688,-500.0,0.00027804,2]
[343295839,1732549841699,-500.0,0.00027804,2]
[343295841,1732549841709,-500.0,0.00027804,2]
[343295843,1732549841719,-500.0,0.00027804,2]
[343295845,1732549841728,-500.0,0.00027804,2]
[343295847,1732549841737,-500.0,0.00027804,2]
[343295849,1732549841746,-500.0,0.00027804,2]
[343295851,1732549841755,-500.0,0.00027804,2]
[343295853,1732549841765,-500.0,0.00027804,2]
[343295855,1732549841774,-500.0,0.00027804,2]
[343295857,1732549841783,-500.0,0.00027804,2]
[343295859,1732549841793,-500.0,0.00027804,2]
[343295861,1732549841802,-500.0,0.00027804,2]
[343295863,1732549841813,-500.0,0.00027805,2]
[343295865,1732549841822,-500.0,0.00027805,2]
[343295867,1732549841832,-500.0,0.00027805,2]
[343295869,1732549841841,-500.0,0.00027805,2]
[343295871,1732549841850,-500.0,0.00027805,2]
[343295873,1732549841860,-500.0,0.00027805,2]
[343295875,1732549841869,-500.0,0.00027805,2]
[343295877,1732549841879,-500.0,0.00027805,2]
[343295879,1732549841888,-500.0,0.00027805,2]
[343295881,1732549841898,-500.0,0.00027805,2]
[343295883,1732549841907,-500.0,0.00027805,2]
[343295885,1732549841917,-500.0,0.00027805,2]
[343295887,1732549841928,-500.0,0.00027805,2]
[343295889,1732549841941,-500.0,0.00027805,2]
[343295891,1732549841953,-500.0,0.00027805,2]
[343295893,1732549841963,-500.0,0.00027805,2]
[343295895,1732549841972,-500.0,0.00027805,2]
[343295897,1732549841982,-500.0,0.00027805,2]
[343295899,1732549841992,-500.0,0.00027805,2]
[343295901,1732549842002,-295.74517073,0.00027805,2]
[343295903,1732549842013,-500.0,0.00027805,2]
[343295905,1732549842022,-500.0,0.00027805,2]
[343295907,1732549842032,-500.0,0.00027805,2]
[343295909,1732549842042,-500.0,0.00027805,2]
[343295911,1732549842052,-500.0,0.00027805,2]
[343295913,1732549842061,-500.48,0.00027805,2]
[343295915,1732549842070,-404.01,0.00027805,2]
[343295917,1732549842079,-500.0,0.00027805,2]
[343295919,1732549842091,-500.0,0.00027805,2]
[343295921,1732549842101,-500.0,0.00027805,2]
[343295923,1732549842112,-500.0,0.00027805,2]
[343295925,1732549842123,-716.56,0.00027805,2]
[343295928,1732549842136,-500.0,0.00027805,2]
[343295930,1732549842150,-1000.0,0.00027821,5]
[343295933,1732549842163,-163.243007,0.00027997,2]
[343295935,1732549842175,-213.5156519,0.00028,2]
[343295937,1732549842186,-213.51565189,0.00028,2]
[343295939,1732549842201,-484.571267,0.00028036,2]
[343295942,1732549842212,-500.0,0.00028077,2]
[343295944,1732549842226,-2327.77,0.00028077,2]
[343295946,1732549842239,-500.0,0.00028077,2]
[343295949,1732549842253,-1707.33,0.00028077,2]
[343295951,1732549842264,-500.0,0.00028077,2]
[343295953,1732549842278,-500.0,0.00028078,2]
[343295956,1732549842291,-500.0,0.00028078,2]
[343295958,1732549842304,-500.0,0.00028078,2]
[343295960,1732549842315,-500.0,0.00028078,2]
[343295963,1732549842327,-500.0,0.00028078,2]
[343295965,1732549842338,-500.0,0.00028078,2]
[343295967,1732549842351,-500.0,0.00028078,2]
[343295969,1732549842363,-500.0,0.00028078,2]
[343295972,1732549842376,-500.0,0.00028078,2]
[343295974,1732549842387,-500.0,0.00028078,2]
[343295976,1732549842398,-500.0,0.00028078,2]
[343295978,1732549842409,-500.0,0.00028078,2]
[343295980,1732549842420,-500.0,0.00028078,2]
[343295983,1732549842433,-500.0,0.00028078,2]
[343295985,1732549842446,-500.0,0.00028078,2]
[343295987,1732549842461,-500.0,0.00028078,2]
[343295989,1732549842474,-500.0,0.00028078,2]
[343295992,1732549842486,-500.0,0.00028078,2]
[343295994,1732549842499,-500.0,0.00028078,2]
[343295997,1732549842513,-518.96,0.00028078,2]
[343295999,1732549842527,-500.0,0.00028078,2]
[343296001,1732549842537,-500.0,0.00028078,2]
[343296003,1732549842547,-500.0,0.00028078,2]
[343296005,1732549842557,-500.0,0.00028078,2]
[343296007,1732549842568,-500.0,0.00028078,2]
[343296010,1732549842581,-500.0,0.00028078,2]
[343296012,1732549842595,-500.0,0.00028078,2]
[343296014,1732549842607,-500.0,0.00028078,2]
[343296017,1732549842619,-9135.38,0.00028078,2]
[343296019,1732549842631,-500.0,0.00028078,2]
[343296021,1732549842643,-500.0,0.00028078,2]
[343296023,1732549842654,-500.0,0.00028078,2]
[343296025,1732549842667,-2839.61,0.00028078,2]
[343296028,1732549842679,-500.0,0.00028078,2]
[343296030,1732549842690,-500.0,0.00028078,2]
[343296032,1732549842704,-500.0,0.00028078,2]
[343296034,1732549842715,-500.0,0.00028078,2]
[343296036,1732549842727,-500.0,0.00028078,2]
[343296038,1732549842738,-500.0,0.00028078,2]
[343296041,1732549842750,-500.0,0.00028078,2]
[343296043,1732549842761,-894.34,0.00028078,2]
[343296045,1732549842772,-500.0,0.00028078,2]
[343296047,1732549842783,-500.0,0.00028078,2]
[343296050,1732549842794,-500.0,0.00028078,2]
[343296053,1732549842805,-500.0,0.00028078,2]
[343296056,1732549842816,-500.0,0.00028078,2]
[343296060,1732549842827,-646.2,0.00028078,2]
[343296063,1732549842839,-500.0,0.00028078,2]
[343296065,1732549842850,-200.0,0.00028078,2]
[343296067,1732549842862,-521.35,0.00028078,2]
[343296069,1732549842873,-500.0,0.00028078,2]
[343296072,1732549842883,-500.0,0.00028078,2]
[343296074,1732549842894,-500.0,0.00028078,2]
[343296076,1732549842905,-500.0,0.00028078,2]
[343296078,1732549842916,-500.0,0.00028078,2]
[343296080,1732549842932,-500.0,0.00028078,2]
[343296084,1732549842944,-500.0,0.00028078,2]
[343296087,1732549842962,-500.0,0.00028078,2]
[343296090,1732549842979,-500.0,0.00028078,2]
[343296094,1732549842991,-500.0,0.00028078,2]
[343296099,1732549843005,-500.0,0.00028078,2]
[343296102,1732549843016,-500.0,0.00028078,2]
[343296104,1732549843027,-500.0,0.00028078,2]
[343296106,1732549843038,-500.0,0.00028078,2]
[343296108,1732549843049,-152.64006937,0.00028078,2]
[343296110,1732549843059,-500.0,0.00028078,2]
[343296113,1732549843070,-500.0,0.00028078,2]
[343296115,1732549843081,-350.25421385,0.00028078,2]
[343296117,1732549843093,-500.0,0.00028079,2]
[343296119,1732549843104,-500.0,0.00028079,2]
[343296121,1732549843116,-500.0,0.00028079,2]
[343296124,1732549843127,-645.18054577,0.00028079,2]
[343296126,1732549843139,-597.37919535,0.00028079,2]
[343296128,1732549843150,-500.0,0.00028079,2]
[343296130,1732549843159,-484.50197059,0.00028079,2]
[343296132,1732549843169,-500.0,0.00028079,2]
[343296134,1732549843179,-500.0,0.00028079,2]
[343296136,1732549843189,-500.0,0.00028079,2]
[343296138,1732549843198,-500.0,0.00028079,2]
[343296140,1732549843212,-451.92,0.00028079,2]
[343296142,1732549843221,-500.0,0.00028079,2]
[343296144,1732549843231,-506.76,0.00028079,2]
[343296146,1732549843241,-500.0,0.00028079,2]
[343296148,1732549843250,-500.0,0.00028079,2]
[343296150,1732549843260,-500.0,0.00028079,2]
[343296166,1732549843270,-500.0,0.00028079,2]
[343296169,1732549843427,-500.0,0.00028079,2]
[343296171,1732549843439,-500.0,0.00028079,2]
[343296173,1732549843452,-500.0,0.00028079,2]
[343296175,1732549843461,-607.34732323,0.00028079,2]
[343296177,1732549843471,-500.0,0.00028079,2]
[343296179,1732549843480,-500.0,0.00028079,2]
[343296181,1732549843490,-500.0,0.00028079,2]
[343296183,1732549843500,-500.0,0.00028079,2]
[343296185,1732549843509,-716.56,0.00028079,2]
[343296187,1732549843518,-427.53,0.00028079,2]
[343296189,1732549843527,-884.97226438,0.00028098,2]
[343296191,1732549843537,-1000.0,0.00028121,5]
[343296193,1732549843546,-1000.0,0.00028121,5]
[343296195,1732549843555,-601.15850341,0.00028121,5]
[343296196,1732549843565,-484.571267,0.00028296,2]
[343296197,1732549843575,-163.243007,0.00028334,2]
[343296198,1732549843584,-204.053758,0.00028334,2]
[343296199,1732549843593,-204.053759,0.00028334,2]
[343296200,1732549843602,-500.0,0.00028351,2]
[343296201,1732549843611,-2327.77,0.00028351,2]
[343296202,1732549843621,-500.0,0.00028351,2]
[343296203,1732549843630,-1707.33,0.00028351,2]
[343296204,1732549843640,-500.0,0.00028351,2]
[343296205,1732549843650,-500.0,0.00028352,2]
[343296206,1732549843660,-500.0,0.00028352,2]
[343296207,1732549843669,-500.0,0.00028352,2]
[343296208,1732549843678,-500.0,0.00028352,2]
[343296210,1732549843687,-500.0,0.00028352,2]
[343296211,1732549843697,-500.0,0.00028352,2]
[343296213,1732549843710,-500.0,0.00028352,2]
[343296215,1732549843719,-500.0,0.00028352,2]
[343296217,1732549843729,-500.0,0.00028352,2]
[343296219,1732549843738,-515.44,0.00028352,2]
[343296221,1732549843748,-500.0,0.00028352,2]
[343296224,1732549843758,-500.0,0.00028352,2]
[343296226,1732549843768,-500.0,0.00028352,2]
[343296228,1732549843777,-500.0,0.00028352,2]
[343296230,1732549843787,-500.0,0.00028352,2]
[343296232,1732549843796,-500.0,0.00028352,2]
[343296234,1732549843805,-500.0,0.00028352,2]
[343296236,1732549843815,-500.0,0.00028352,2]
[343296238,1732549843825,-500.0,0.00028352,2]
[343296240,1732549843834,-500.0,0.00028352,2]
[343296242,1732549843843,-500.0,0.00028352,2]
[343296244,1732549843853,-500.0,0.00028352,2]
[343296246,1732549843862,-500.0,0.00028352,2]
[343296248,1732549843872,-500.0,0.00028352,2]
[343296250,1732549843882,-500.0,0.00028352,2]
[343296252,1732549843892,-500.0,0.00028352,2]
[343296254,1732549843902,-9135.38,0.00028352,2]
[343296256,1732549843911,-500.0,0.00028352,2]
[343296258,1732549843921,-500.0,0.00028352,2]
[343296260,1732549843932,-500.0,0.00028352,2]
[343296262,1732549843943,-2839.61,0.00028352,2]
[343296264,1732549843955,-500.0,0.00028352,2]
[343296266,1732549843965,-500.0,0.00028352,2]
[343296268,1732549843975,-153.7,0.00028352,2]
[343296270,1732549843985,-500.0,0.00028352,2]
[343296272,1732549843995,-500.0,0.00028352,2]
[343296274,1732549844006,-500.0,0.00028352,2]
[343296276,1732549844015,-500.0,0.00028352,2]
[343296278,1732549844026,-894.34,0.00028352,2]
[343296280,1732549844035,-500.0,0.00028352,2]
[343296282,1732549844045,-500.0,0.00028352,2]
[343296284,1732549844054,-500.0,0.00028352,2]
[343296286,1732549844064,-500.0,0.00028352,2]
[343296288,1732549844073,-500.0,0.00028352,2]
[343296290,1732549844087,-500.0,0.00028352,2]
[343296292,1732549844096,-200.0,0.00028352,2]
[343296294,1732549844106,-500.0,0.00028352,2]
[343296296,1732549844115,-500.0,0.00028352,2]
[343296298,1732549844125,-500.0,0.00028352,2]
[343296300,1732549844135,-500.0,0.00028352,2]
[343296302,1732549844144,-500.0,0.00028352,2]
[343296304,1732549844154,-500.0,0.00028352,2]
[343296306,1732549844164,-500.0,0.00028352,2]
[343296308,1732549844173,-500.0,0.00028352,2]
[343296310,1732549844182,-500.0,0.00028352,2]
[343296312,1732549844192,-207.95,0.00028352,2]
[343296314,1732549844202,-268.96060271,0.00028352,2]
[343296316,1732549844213,-500.0,0.00028352,2]
[343296317,1732549844222,-582.20451952,0.00028352,2]
[343296319,1732549844232,-500.0,0.00028353,2]
[343296321,1732549844241,-500.0,0.00028353,2]
[343296323,1732549844251,-275.10805231,0.00028353,2]
[343296325,1732549844260,-619.85,0.00028353,2]
[343296327,1732549844269,-500.0,0.00028353,2]
[343296329,1732549844279,-315.8,0.00028353,2]
[343296331,1732549844288,-500.0,0.00028353,2]
[343296333,1732549844298,-500.0,0.00028353,2]
[343296335,1732549844307,-251.8,0.00028353,2]
[343296337,1732549844316,-500.0,0.00028353,2]
[343296339,1732549844326,-267.86,0.00028353,2]
[343296341,1732549844335,-500.0,0.00028353,2]
[343296343,1732549844346,-500.0,0.00028353,2]
[343296345,1732549844355,-716.56,0.00028353,2]
[343296347,1732549844365,-884.97226438,0.00028503,2]
[343296349,1732549844374,-484.571267,0.00028555,2]
[343296351,1732549844384,-310.25259583,0.00028581,2]
[343296353,1732549844393,-2327.77,0.00028625,2]
[343296355,1732549844403,-500.0,0.00028625,2]
[343296357,1732549844412,-1707.33,0.00028625,2]
[343296359,1732549844421,-500.0,0.00028625,2]
[343296361,1732549844430,-500.0,0.00028626,2]
[343296364,1732549844441,-500.0,0.00028626,2]
[343296365,1732549844452,-500.0,0.00028626,2]
[343296367,1732549844461,-500.0,0.00028626,2]
[343296369,1732549844471,-500.0,0.00028626,2]
[343296371,1732549844481,-500.0,0.00028626,2]
[343296373,1732549844491,-500.0,0.00028626,2]
[343296375,1732549844500,-500.0,0.00028626,2]
[343296377,1732549844510,-500.0,0.00028626,2]
[343296380,1732549844520,-500.0,0.00028626,2]
[343296382,1732549844529,-500.0,0.00028626,2]
[343296384,1732549844539,-500.0,0.00028626,2]
[343296386,1732549844549,-500.0,0.00028626,2]
[343296388,1732549844558,-500.0,0.00028626,2]
[343296390,1732549844567,-500.0,0.00028626,2]
[343296392,1732549844577,-500.0,0.00028626,2]
[343296394,1732549844586,-500.0,0.00028626,2]
[343296396,1732549844596,-500.0,0.00028626,2]
[343296398,1732549844605,-500.0,0.00028626,2]
[343296400,1732549844615,-500.0,0.00028626,2]
[343296402,1732549844624,-500.0,0.00028626,2]
[343296404,1732549844634,-571.01248402,0.00028626,2]
[343296406,1732549844643,-500.0,0.00028626,2]
[343296408,1732549844653,-500.0,0.00028626,2]
[343296410,1732549844662,-9135.38,0.00028626,2]
[343296412,1732549844671,-500.0,0.00028626,2]
[343296414,1732549844680,-514.9,0.00028626,2]
[343296416,1732549844689,-500.0,0.00028626,2]
[343296418,1732549844699,-2839.61,0.00028626,2]
[343296419,1732549844710,-500.0,0.00028626,2]
[343296422,1732549844720,-500.0,0.00028626,2]
[343296424,1732549844729,-393.0,0.00028626,2]
[343296426,1732549844739,-500.0,0.00028626,2]
[343296428,1732549844748,-500.0,0.00028626,2]
[343296430,1732549844758,-894.34,0.00028626,2]
[343296432,1732549844769,-500.0,0.00028626,2]
[343296434,1732549844779,-500.0,0.00028626,2]
[343296436,1732549844789,-500.0,0.00028626,2]
[343296438,1732549844798,-500.0,0.00028626,2]
[343296440,1732549844808,-200.0,0.00028626,2]
[343296442,1732549844818,-500.0,0.00028626,2]
[343296444,1732549844827,-500.0,0.00028626,2]
[343296446,1732549844837,-500.0,0.00028626,2]
[343296448,1732549844846,-500.0,0.00028626,2]
[343296450,1732549844856,-500.0,0.00028626,2]
[343296452,1732549844866,-500.0,0.00028626,2]
[343296454,1732549844875,-500.0,0.00028626,2]
[343296456,1732549844886,-500.0,0.00028626,2]
[343296458,1732549844896,-500.0,0.00028626,2]
[343296460,1732549844905,-500.0,0.00028627,2]
[343296462,1732549844915,-500.0,0.00028627,2]
[343296464,1732549844926,-500.0,0.00028627,2]
[343296466,1732549844941,-500.0,0.00028627,2]
[343296468,1732549844955,-500.0,0.00028627,2]
[343296470,1732549844966,-500.0,0.00028627,2]
[343296472,1732549844976,-500.0,0.00028627,2]
[343296474,1732549844986,-716.56,0.00028627,2]
[343296476,1732549844995,-465.53358251,0.00028773,2]
[343296478,1732549845004,-811.81,0.000288,2]
[343296480,1732549845014,-484.571267,0.00028815,2]
[343296482,1732549845023,-344.31383677,0.00028822,5]
[343296484,1732549845032,-222000.0,0.0002884,2]
[343296486,1732549845042,-504.40584665,0.00028873,5]
[343296488,1732549845051,-501.66742962,0.00028873,5]
[343296490,1732549845061,-465.53358244,0.00028878,2]
[343296492,1732549845071,-2327.77,0.00028899,2]
[343296494,1732549845080,-500.0,0.00028899,2]
[343296496,1732549845089,-1707.33,0.00028899,2]
[343296498,1732549845100,-500.0,0.00028899,2]
[343296500,1732549845110,-500.0,0.000289,2]
[343296502,1732549845123,-500.0,0.000289,2]
[343296504,1732549845132,-500.0,0.000289,2]
[343296506,1732549845142,-500.0,0.000289,2]
[343296508,1732549845152,-500.0,0.000289,2]
[343296510,1732549845162,-500.0,0.000289,2]
[343296512,1732549845171,-452.76,0.000289,2]
[343296514,1732549845180,-632.24,0.000289,2]
[343296516,1732549845190,-500.0,0.000289,2]
[343296518,1732549845199,-500.0,0.000289,2]
[343296520,1732549845211,-500.0,0.000289,2]
[343296522,1732549845221,-500.0,0.000289,2]
[343296524,1732549845231,-500.0,0.000289,2]
[343296526,1732549845242,-500.0,0.000289,2]
[343296528,1732549845252,-500.0,0.000289,2]
[343296530,1732549845262,-500.0,0.000289,2]
[343296532,1732549845272,-500.0,0.000289,2]
[343296534,1732549845282,-9135.38,0.000289,2]
[343296536,1732549845292,-500.0,0.000289,2]
[343296538,1732549845302,-500.0,0.000289,2]
[343296540,1732549845313,-2839.61,0.000289,2]
[343296542,1732549845322,-294.84,0.000289,2]
[343296544,1732549845332,-500.0,0.000289,2]
[343296546,1732549845341,-500.0,0.000289,2]
[343296548,1732549845351,-894.34,0.000289,2]
[343296550,1732549845361,-271.8,0.000289,2]
[343296552,1732549845370,-500.0,0.000289,2]
[343296554,1732549845380,-469.04,0.000289,2]
[343296556,1732549845390,-500.0,0.000289,2]
[343296558,1732549845399,-500.0,0.000289,2]
[343296560,1732549845409,-360.35,0.000289,2]
[343296562,1732549845419,-500.0,0.000289,2]
[343296565,1732549845429,-500.0,0.000289,2]
[343296566,1732549845439,-618.23,0.000289,2]
[343296568,1732549845448,-500.0,0.000289,2]
[343296570,1732549845461,-500.0,0.00028901,2]
[343296572,1732549845471,-500.0,0.00028901,2]
[343296574,1732549845481,-500.0,0.00028901,2]
[343296575,1732549845490,-219.1,0.00028901,2]
[343296576,1732549845500,-500.0,0.00028901,2]
[343296577,1732549845510,-500.0,0.00028901,2]
[343296578,1732549845519,-500.0,0.00028901,2]
[343296579,1732549845529,-716.56,0.00028901,2]
[343296580,1732549845540,-884.97226438,0.00028908,2]
[343296581,1732549845550,-167142.88846557,0.0002894,2]
[343296582,1732549845560,-465.53358244,0.00028983,2]
[343296583,1732549845569,-500.0,0.00029037,2]
[343296584,1732549845579,-500.0,0.00029038,2]
[343296585,1732549845588,-500.0,0.00029038,2]
[343296586,1732549845598,-500.0,0.00029038,2]
[343296588,1732549845608,-500.0,0.00029038,2]
[343296590,1732549845617,-500.0,0.00029038,2]
[343296592,1732549845627,-416.00794698,0.00029038,2]
[343296594,1732549845637,-500.0,0.00029038,2]
[343296596,1732549845647,-500.0,0.00029038,2]
[343296598,1732549845657,-500.0,0.00029038,2]
[343296601,1732549845666,-500.0,0.00029038,2]
[343296603,1732549845676,-500.0,0.00029038,2]
[343296605,1732549845686,-500.0,0.00029038,2]
[343296606,1732549845695,-500.0,0.00029038,2]
[343296608,1732549845711,-500.0,0.00029038,2]
[343296610,1732549845721,-619.02127424,0.00029038,2]
[343296612,1732549845731,-500.0,0.00029038,2]
[343296614,1732549845740,-500.0,0.00029038,2]
[343296616,1732549845749,-501.88741906,0.00029038,2]
[343296618,1732549845759,-500.0,0.00029038,2]
[343296620,1732549845769,-500.0,0.00029038,2]
[343296622,1732549845778,-500.0,0.00029038,2]
[343296624,1732549845787,-500.0,0.00029039,2]
[343296626,1732549845797,-500.0,0.00029039,2]
[343296628,1732549845807,-500.0,0.00029039,2]
[343296630,1732549845816,-500.0,0.00029039,2]
[343296632,1732549845825,-500.0,0.00029039,2]
[343296634,1732549845835,-484.571267,0.00029075,2]
[343296636,1732549845845,-465.53358244,0.00029088,2]
[343296638,1732549845854,-1500.0,0.00029122,5]
[343296640,1732549845864,-748.62425026,0.00029122,5]
[343296643,1732549845873,-420.0,0.00029168,2]
[343296647,1732549845883,-2327.77,0.00029173,2]
[343296651,1732549845892,-500.0,0.00029173,2]
[343296653,1732549845902,-1707.33,0.00029173,2]
[343296655,1732549845911,-500.0,0.00029173,2]
[343296657,1732549845921,-500.0,0.00029174,2]
[343296659,1732549845934,-500.0,0.00029174,2]
[343296661,1732549845944,-500.0,0.00029174,2]
[343296663,1732549845957,-500.0,0.00029174,2]
[343296665,1732549845967,-500.0,0.00029174,2]
[343296667,1732549845977,-500.0,0.00029174,2]
[343296669,1732549845986,-500.0,0.00029174,2]
[343296671,1732549845996,-500.0,0.00029174,2]
[343296673,1732549846005,-500.0,0.00029174,2]
[343296675,1732549846016,-199.3,0.00029174,2]
[343296679,1732549846025,-271.40333271,0.00029174,2]
[343296682,1732549846034,-500.0,0.00029174,2]
[343296685,1732549846044,-500.0,0.00029174,2]
[343296688,1732549846053,-9135.38,0.00029174,2]
[343296691,1732549846062,-500.0,0.00029174,2]
[343296693,1732549846072,-500.0,0.00029174,2]
[343296696,1732549846081,-2839.61,0.00029174,2]
[343296699,1732549846090,-500.0,0.00029174,2]
[343296701,1732549846100,-500.0,0.00029174,2]
[343296703,1732549846109,-894.34,0.00029174,2]
[343296705,1732549846118,-500.0,0.00029174,2]
[343296707,1732549846128,-156.6,0.00029174,2]
[343296717,1732549846213,-500.0,0.00029174,2]
[343296719,1732549846234,-500.0,0.00029174,2]
[343296721,1732549846244,-500.0,0.00029174,2]
[343296723,1732549846254,-500.0,0.00029174,2]
[343296725,1732549846263,-210.21,0.00029175,2]
[343296727,1732549846272,-563.05,0.00029175,2]
[343296729,1732549846282,-500.0,0.00029175,2]
[343296731,1732549846291,-500.0,0.00029175,2]
[343296733,1732549846300,-500.0,0.00029175,2]
[343296735,1732549846309,-500.0,0.00029175,2]
[343296737,1732549846318,-716.56,0.00029175,2]
[343296739,1732549846327,-465.53358244,0.00029193,2]
[343296741,1732549846337,-660.0,0.00029298,2]
[343296743,1732549846346,-465.53358244,0.00029299,2]
[343296745,1732549846355,-500.0,0.00029312,2]
[343296747,1732549846364,-500.0,0.00029312,2]
[343296749,1732549846374,-500.0,0.00029312,2]
[343296751,1732549846383,-500.0,0.00029312,2]
[343296753,1732549846393,-500.0,0.00029312,2]
[343296755,1732549846402,-500.0,0.00029312,2]
[343296757,1732549846411,-500.0,0.00029312,2]
[343296759,1732549846421,-500.0,0.00029312,2]
[343296760,1732549846430,-500.0,0.00029312,2]
[343296762,1732549846439,-500.0,0.00029312,2]
[343296763,1732549846448,-500.0,0.00029312,2]
[343296765,1732549846463,-190.871795,0.00029312,2]
[343296766,1732549846472,-500.0,0.00029312,2]
[343296768,1732549846482,-431.33179256,0.00029312,2]
[343296769,1732549846491,-249.62186549,0.00029312,2]
[343296771,1732549846501,-500.0,0.00029312,2]
[343296772,1732549846510,-500.0,0.00029312,2]
[343296774,1732549846519,-607.3,0.00029313,2]
[343296775,1732549846529,-500.0,0.00029313,2]
[343296777,1732549846538,-500.0,0.00029313,2]
[343296778,1732549846547,-506.7335058,0.00029313,2]
[343296780,1732549846556,-500.0,0.00029313,2]
[343296781,1732549846565,-884.97226438,0.00029314,2]
[343296783,1732549846574,-484.571267,0.00029334,2]
[343296784,1732549846583,-500.0,0.00029398,2]
[343296786,1732549846592,-150.0,0.00029399,2]
[343296787,1732549846601,-1105.0,0.00029399,2]
[343296789,1732549846610,-150.06,0.00029399,2]
[343296791,1732549846619,-150.056,0.00029399,2]
[343296792,1732549846628,-1000.0,0.000294,2]
[343296794,1732549846638,-7443.48543046,0.000294,7]
[343296797,1732549846648,-7742.72320984,0.000294,7]
[343296798,1732549846657,-465.53358244,0.00029404,2]
[343296800,1732549846666,-2327.77,0.00029447,2]
[343296801,1732549846675,-500.0,0.00029447,2]
[343296803,1732549846684,-1707.33,0.00029447,2]
[343296805,1732549846693,-500.0,0.00029447,2]
[343296806,1732549846705,-500.0,0.00029448,2]
[343296808,1732549846716,-500.0,0.00029448,2]
[343296810,1732549846725,-500.0,0.00029448,2]
[343296811,1732549846734,-500.0,0.00029448,2]